bitfinex-derivatives/quotes_SOLF0:USTF0_20241222
["timestamp","ask_amount","ask_price","bid_price","bid_amount"]
[1734883648546,2.7512,181.87,181.8,7.94077598]
[1734883648742,2.7512,181.87,181.81,5.18857598]
[1734883649246,2.7512,181.87,181.8,2.7522]
[1734883649643,5.9711,181.88,181.82,2.7519]
[1734883650845,3.22,181.88,181.79,1.6107]
[1734883651043,2.7509,181.89,181.83,2.7518]
[1734883651555,3.22,181.93,181.8,6.99535552]
[1734883651556,2.7513,181.87,181.8,6.99535552]
[1734883651745,2.7513,181.87,181.79,1.6107]
[1734883652047,3.22,181.93,181.81,5.17195289]
[1734883652238,3.22,181.93,181.79,1.6107]
[1734883652640,2.7518,181.84,181.79,4.3631]
[1734883652846,23.89081498,181.92,181.8,5.16934198]
[1734883653054,23.89081498,181.92,181.79,1.6107]
[1734883654245,2.7515,181.86,181.79,4.363]
[1734883654444,23.89081498,181.92,181.79,1.6107]
[1734883654644,3.22,181.91,181.83,2.7518]
[1734883654852,3.22,181.91,181.8,5.16936066]
[1734883655349,1.99115,181.94,181.81,29.06017564]
[1734883655551,1.99115,181.94,181.82,3.22]
[1734883655852,2.7508,181.9,181.84,2.7517]
[1734883656253,1.99115,181.94,181.82,3.22]
[1734883656444,0.24625,181.94,181.82,3.22]
[1734883656649,0.24625,181.94,181.84,23.89081498]
[1734883657248,2.7505,181.92,181.87,2.7512]
[1734883657644,0.24625,181.94,181.87,2.7511]
[1734883657849,0.24625,181.94,181.84,23.89081498]
[1734883658151,3.22,181.93,181.82,3.22]
[1734883658446,3.22,181.93,181.79,1.6107]
[1734883658447,3.22,181.93,181.79,4.8307]
[1734883658651,1.6537,181.92,181.79,1.6107]
[1734883658850,2.7516,181.85,181.79,9.52403828]
[1734883659048,1.6537,181.92,181.79,9.52403828]
[1734883659049,1.6537,181.92,181.79,1.6107]
[1734883659757,0.24625,181.94,181.81,23.89081498]
[1734883659951,0.24625,181.94,181.8,5.15912606]
[1734883660147,0.24625,181.94,181.79,1.6107]
[1734883660353,0.24625,181.94,181.79,4.8307]
[1734883660554,2.7517,181.84,181.79,7.583]
[1734883660753,3.22,181.88,181.79,1.6107]
[1734883661258,3.22,181.88,181.76,2.7529]
[1734883661953,2.7521,181.82,181.76,2.7529]
[1734883662554,3.22,181.88,181.77,6.0963]
[1734883663557,3.22,181.88,181.78,2.7525]
[1734883663759,3.22,181.88,181.77,3.3436]
[1734883664061,2.7519,181.83,181.77,3.3436]
[1734883664358,3.22,181.88,181.77,3.3436]
[1734883664757,3.22,181.88,181.77,6.0962]
[1734883664952,3.22,181.88,181.77,3.3436]
[1734883665160,2.7518,181.84,181.79,2.7524]
[1734883665354,0.24625,181.94,181.78,23.89081498]
[1734883665355,24.13706498,181.94,181.78,23.89081498]
[1734883665558,3.22,181.93,181.78,23.89081498]
[1734883665957,2.7514,181.86,181.8,2.7523]
[1734883666356,3.22,181.93,181.78,23.89081498]
[1734883666563,2.7513,181.87,181.81,2.752]
[1734883667458,2.7514,181.86,181.81,2.752]
[1734883667858,3.22,181.9,181.82,2.752]
[1734883668053,3.22,181.9,181.78,23.89081498]
[1734883668457,3.22,181.9,181.78,29.05420554]
[1734883668658,3.22,181.9,181.78,31.80670554]
[1734883668859,1.6137,181.89,181.77,3.3436]
[1734883669260,2.7515,181.86,181.78,2.7525]
[1734883669461,1.6137,181.89,181.78,23.89081498]
[1734883669760,3.22,181.9,181.78,23.89081498]
[1734883669959,3.22,181.9,181.79,8.38499425]
[1734883670160,2.7513,181.87,181.82,2.7519]
[1734883670356,1.5793,181.95,181.81,23.89081498]
[1734883670557,3.22,181.94,181.81,23.89081498]
[1734883670764,2.7505,181.92,181.87,2.7511]
[1734883672165,1.5793,181.95,181.85,7.91341168]
[1734883672362,1.5793,181.95,181.84,3.22]
[1734883672664,2.7512,181.88,181.84,3.22]
[1734883672863,1.5793,181.95,181.84,3.22]
[1734883673063,23.89081498,181.94,181.83,89.96458971]
[1734883673259,2.7515,181.85,181.83,89.96458971]
[1734883673767,2.7517,181.84,181.82,89.96458971]
[1734883673959,3.22,181.9,181.82,89.96458971]
[1734883674561,2.7513,181.87,181.82,2.752]
[1734883675962,2.7513,181.87,181.83,20.41719981]
[1734883676564,3.22,181.9,181.83,20.41719981]
[1734883676968,3.3167,181.89,181.84,137.6563518]
[1734883677264,3.3167,181.89,181.84,135.0331518]
[1734883677859,3.3167,181.89,181.84,117.23915199]
[1734883678066,2.7521,181.82,181.8,89.96458971]
[1734883680369,3.22,181.85,181.8,89.96458971]
[1734883680964,2.7521,181.81,181.8,89.96458971]
[1734883681165,3.3167,181.89,181.8,89.96458971]
[1734883681370,3.22,181.88,181.8,89.96458971]
[1734883681871,2.7517,181.84,181.81,5.20110449]
[1734883682067,3.22,181.87,181.81,5.20110449]
[1734883682370,2.7514,181.87,181.82,4.27158829]
[1734883682565,2.7514,181.87,181.83,9.47758507]
[1734883682767,2.7514,181.87,181.84,4.27158829]
[1734883682966,2.7514,181.87,181.84,5.20599678]
[1734883683164,2.7514,181.87,181.85,5.20599678]
[1734883683370,5.9711,181.89,181.85,5.20599678]
[1734883683672,3.22,181.89,181.86,9.48196158]
[1734883683867,5.971,181.89,181.87,9.48196158]
[1734883684074,3.22,181.89,181.87,5.20599678]
[1734883684263,3.22,181.89,181.88,5.20599678]
[1734883684669,0.21535183,181.89,181.88,235.4046664]
[1734883684866,3.22,181.9,181.88,235.4046664]
[1734883685268,3.22,181.9,181.87,152.36356036]
[1734883685874,3.22,181.9,181.88,5.23167332]
[1734883686074,2.7509,181.89,181.88,96.67183109]
[1734883686271,2.7509,181.89,181.88,95.73176202]
[1734883686475,2.7509,181.89,181.88,100.96540863]
[1734883686968,2.7508,181.9,181.88,100.96540863]
[1734883687171,3.22,181.92,181.88,96.67380438]
[1734883687374,3.22,181.92,181.89,4.29590698]
[1734883687671,2.7508,181.91,181.9,9.52955359]
[1734883688273,2.7508,181.91,181.9,96.67380438]
[1734883689072,2.7508,181.91,181.9,91.44015777]
[1734883689271,3.22,181.92,181.87,91.44015777]
[1734883689477,2.7511,181.88,181.87,91.44015777]
[1734883689680,23.89081498,181.95,181.87,96.68447681]
[1734883689869,2.751,181.89,181.87,96.68447681]
[1734883690070,3.286,181.96,181.88,5.24431904]
[1734883690276,3.22,181.92,181.88,5.24431904]
[1734883690471,2.7507,181.91,181.89,5.24431904]
[1734883690676,3.22,181.93,181.9,5.24431904]
[1734883690976,3.22,181.93,181.89,120.58368137]
[1734883691383,3.22,181.93,181.9,5.24108449]
[1734883691577,2.7506,181.91,181.9,5.24108449]
[1734883691778,3.22,181.93,181.9,91.44015777]
[1734883692078,3.22,181.95,181.9,91.44015777]
[1734883692477,3.2507,182.01,181.91,5.24086538]
[1734883692778,3.22,182.0,181.92,5.24086538]
[1734883692974,3.22,181.99,181.92,5.24086538]
[1734883693172,2.75,181.96,181.93,5.24086538]
[1734883693779,2.75,181.96,181.94,5.24086538]
[1734883693984,2.75,181.96,181.94,96.68102315]
[1734883694277,2.75,181.96,181.95,5.24086538]
[1734883695870,2.7502,181.94,181.93,127.83199366]
[1734883696281,3.22,181.99,181.93,5.22785789]
[1734883696483,2.7502,181.94,181.91,93.14625777]
[1734883696780,3.22,181.99,181.92,5.22825232]
[1734883696980,3.2,181.99,181.93,5.22825232]
[1734883697177,2.75,181.96,181.93,5.22825232]
[1734883697373,3.2,181.99,181.94,5.22825232]
[1734883697684,3.2,181.99,181.91,1.7061]
[1734883697980,3.2,181.99,181.92,5.37703442]
[1734883698183,2.7497,181.97,181.92,5.37703442]
[1734883698385,3.2,181.99,181.93,5.37703442]
[1734883698879,3.2,181.99,181.94,5.37703442]
[1734883699179,3.2,181.99,181.95,5.37703442]
[1734883699387,3.2,182.01,181.95,5.37703442]
[1734883699778,3.2,182.01,181.96,5.37703442]
[1734883699978,2.75,181.96,181.91,4.4567]
[1734883700279,2.75,181.96,181.92,5.37310864]
[1734883700482,2.7497,181.97,181.92,8.12350864]
[1734883700682,3.2,182.01,181.93,5.37310864]
[1734883700886,3.2,182.01,181.94,5.37310864]
[1734883701280,3.2,182.01,181.95,5.37310864]
[1734883701281,2.7497,181.98,181.95,5.37310864]
[1734883701581,0.32393,182.02,181.96,5.37310864]
[1734883701780,2.7494,182.0,181.96,5.37310864]
[1734883701980,2.7494,182.0,181.97,5.37310864]
[1734883702379,2.7494,181.99,181.98,5.37310864]
[1734883702784,2.7494,181.99,181.95,1.6517]
[1734883703180,2.7494,181.99,181.96,5.36615931]
[1734883703382,0.32393,182.02,181.97,5.36615931]
[1734883703776,0.32393,182.02,181.95,1.6517]
[1734883703977,2.7492,182.01,181.96,5.36567223]
[1734883704185,0.32393,182.02,181.95,1.6517]
[1734883704581,2.7497,181.97,181.95,1.6517]
[1734883705088,2.7497,181.97,181.96,5.3641957]
[1734883705281,0.32393,182.02,181.96,5.3641957]
[1734883705781,0.32393,182.02,181.95,1.6517]
[1734883705988,2.7494,182.0,181.95,4.4017]
[1734883706489,2.7494,182.0,181.96,5.35679523]
[1734883706889,2.7494,182.0,181.97,5.35679523]
[1734883707188,2.7494,182.0,181.95,4.4017]
[1734883707583,2.7494,182.0,181.96,5.35615965]
[1734883707783,2.7494,181.99,181.97,5.35615965]
[1734883707990,0.32393,182.02,181.97,5.35615965]
[1734883708183,0.32393,182.02,181.95,1.6517]
[1734883708385,2.7493,182.0,181.95,1.6517]
[1734883708689,0.32393,182.02,181.96,5.35662649]
[1734883708888,0.32393,182.02,181.95,1.6517]
[1734883709587,0.32393,182.02,181.96,5.35680933]
[1734883709995,3.2,182.04,181.95,1.6517]
[1734883710587,3.2,182.04,181.96,5.35453254]
[1734883710781,0.9232046,182.03,181.96,5.35453254]
[1734883710994,3.2,182.04,181.95,1.6517]
[1734883711789,2.7498,181.97,181.95,1.6517]
[1734883711997,3.2,182.04,181.95,1.6517]
[1734883713495,23.89081498,182.05,181.96,10.38846936]
[1734883713690,3.2,182.04,181.97,5.03576484]
[1734883713892,3.2,182.04,181.97,5.35270452]
[1734883714194,3.2,182.04,181.98,5.35270452]
[1734883714388,2.7493,182.0,181.98,5.35270452]
[1734883714595,2.7493,182.0,181.95,4.4017]
[1734883714889,3.2,182.04,181.95,1.6517]
[1734883715096,2.7497,181.98,181.96,14.31249638]
[1734883715390,2.7497,181.98,181.97,5.5048063]
[1734883716095,2.75,181.95,181.94,1.7358]
[1734883716295,2.75,181.95,181.94,7.2423175]
[1734883716696,2.7499,181.96,181.94,7.2423175]
[1734883717192,2.7499,181.96,181.95,5.5065175]
[1734883719795,18.1607,182.1,181.95,5.5065175]
[1734883719988,0.92290736,182.09,181.97,23.89081498]
[1734883720187,0.92290736,182.09,181.99,14.61305153]
[1734883720389,0.92290736,182.1,181.99,14.61305153]
[1734883720693,0.92287919,182.09,182.0,14.316934]
[1734883720992,2.7482,182.07,182.01,5.5065175]
[1734883721298,2.7482,182.07,182.02,7.1630175]
[1734883721494,0.92288,182.09,182.02,7.1630175]
[1734883721696,0.92288,182.09,182.03,5.5065175]
[1734883722198,0.92288,182.09,181.99,91.44015777]
[1734883722199,3.2,182.08,181.99,91.44015777]
[1734883722398,3.2,182.08,182.0,14.31478459]
[1734883722794,3.2,182.08,182.01,5.50568638]
[1734883722996,2.7489,182.03,182.01,5.50568638]
[1734883723198,3.2,182.08,181.98,94.64015777]
[1734883723494,2.7493,182.0,181.99,14.31913843]
[1734883723904,3.2,182.03,181.98,91.44015777]
[1734883724602,2.7497,181.98,181.93,115.19413549]
[1734883724799,2.7497,181.98,181.94,14.41839492]
[1734883725203,2.7499,181.96,181.95,5.54553651]
[1734883725405,2.7499,181.96,181.95,14.35396681]
[1734883725804,2.7497,181.97,181.95,14.35396681]
[1734883726001,2.7497,181.97,181.95,5.54553651]
[1734883726200,2.7497,181.97,181.96,5.54553651]
[1734883726402,2.7496,181.98,181.96,5.54553651]
[1734883726908,2.7496,181.98,181.97,5.54553651]
[1734883727306,2.7498,181.97,181.95,21.81791412]
[1734883727509,2.7498,181.97,181.96,5.44251302]
[1734883727904,2.7495,181.99,181.96,10.35361223]
[1734883728111,2.7495,181.99,181.96,35.99033639]
[1734883728312,2.7495,181.99,181.97,19.0616777]
[1734883728511,2.7495,181.99,181.97,14.15222066]
[1734883728711,2.7495,181.99,181.98,5.44251302]
[1734883729204,2.7495,181.99,181.98,27.28062875]
[1734883730208,2.7494,181.99,181.98,21.83811573]
[1734883730604,2.7494,181.99,181.98,35.45267725]
[1734883730913,2.7494,181.99,181.98,45.80296178]
[1734883731307,3.2,182.02,181.98,45.80296178]
[1734883731509,3.2,182.02,181.99,19.06206133]
[1734883731710,3.2,182.04,182.0,4.90480365]
[1734883731906,3.2,182.04,182.01,14.15633901]
[1734883732512,2.7488,182.03,182.02,19.06280624]
[1734883732914,2.7488,182.03,182.02,40.88582831]
[1734883733714,2.7488,182.03,182.02,48.9784044]
[1734883733910,2.7487,182.04,182.02,48.9784044]
[1734883734108,2.7487,182.04,182.03,4.90365583]
[1734883734414,2.7487,182.04,182.03,19.06280624]
[1734883734612,2.7487,182.04,182.03,14.15915041]
[1734883737421,2.7487,182.04,182.03,19.02322462]
[1734883737724,2.7487,182.04,182.03,14.15915041]
[1734883737920,5.9486,182.05,182.03,14.15915041]
[1734883738320,5.9486,182.05,182.04,14.15915041]
[1734883738518,3.2,182.05,182.04,14.15915041]
[1734883739122,5.9485,182.05,182.04,14.15915041]
[1734883740623,5.9485,182.05,182.04,5.44603099]
[1734883741228,2.7485,182.05,182.04,5.44603099]
[1734883741429,2.7489,182.03,181.98,91.44015777]
[1734883741630,2.7489,182.03,181.99,14.22417444]
[1734883742126,2.7489,182.03,182.0,14.22417444]
[1734883742528,2.7489,182.03,182.0,36.02453595]
[1734883742830,3.2,182.05,182.01,14.22417444]
[1734883743033,3.2,182.08,182.01,16.97327444]
[1734883743221,3.2,182.08,182.02,14.22417444]
[1734883743628,2.7485,182.06,182.03,14.22417444]
[1734883743925,2.7485,182.06,182.04,14.22417444]
[1734883744534,2.7485,182.06,182.05,14.22417444]
[1734883745527,2.749,182.02,182.01,91.44015777]
[1734883745930,2.749,182.02,182.01,105.66659036]
[1734883746135,2.749,182.02,182.01,14.22643259]
[1734883746431,0.43879,182.14,182.01,14.22643259]
[1734883746632,0.43879,182.14,182.03,14.61812289]
[1734883746826,0.43879,182.14,182.02,14.22643259]
[1734883747026,0.43879,182.14,182.04,14.22643259]
[1734883747027,0.92261963,182.13,182.04,14.22643259]
[1734883747226,3.2,182.12,182.05,14.22643259]
[1734883747427,4.8382,182.12,182.01,21.7936178]
[1734883747629,0.92261963,182.11,182.01,21.7936178]
[1734883747830,0.92261963,182.11,182.03,21.7936178]
[1734883748131,0.92261963,182.11,182.04,14.21950605]
[1734883748327,4.8382,182.12,182.04,14.21950605]
[1734883748533,2.7486,182.05,182.01,91.44015777]
[1734883748835,4.8382,182.12,182.01,91.44015777]
[1734883749036,2.7488,182.04,182.02,14.21937663]
[1734883749430,2.7488,182.04,182.03,14.21937663]
[1734883752430,2.7488,182.04,182.03,5.46899101]
[1734883753640,3.2,182.07,181.98,91.44015777]
[1734883753938,2.749,182.02,181.98,91.44015777]
[1734883754149,2.749,182.02,181.99,5.40207727]
[1734883754548,2.749,182.02,182.0,5.40207727]
[1734883754753,2.7485,182.05,182.01,5.40207727]
[1734883754956,3.2,182.07,182.01,5.40207727]
[1734883755150,3.2,182.07,182.02,5.40207727]
[1734883755355,2.7492,182.01,181.98,91.44015777]
[1734883755554,3.2,182.07,181.98,91.44015777]
[1734883755758,3.2,182.07,181.99,14.40715406]
[1734883755959,4.16024659,182.06,182.0,14.40715406]
[1734883756159,0.92294659,182.05,182.0,14.40715406]
[1734883756355,0.92294659,182.05,182.01,5.5412131]
[1734883756660,2.7494,181.99,181.98,91.44015777]
[1734883757060,2.7494,181.99,181.98,105.8566885]
[1734883757355,2.7494,181.99,181.98,14.41653073]
[1734883758059,2.7494,181.99,181.98,27.37682961]
[1734883758464,2.7494,181.99,181.98,21.8320101]
[1734883758665,2.7493,182.01,181.98,21.8320101]
[1734883758962,2.7493,182.01,181.99,14.0978942]
[1734883759163,2.7493,182.01,182.0,5.422267]
[1734883760361,2.7493,182.01,182.0,14.09617621]
[1734883761967,2.7493,182.01,181.97,91.44015777]
[1734883762366,2.749,182.02,181.97,91.44015777]
[1734883762668,3.2,182.04,181.97,91.44015777]
[1734883762965,3.2,182.04,181.98,21.83656309]
[1734883763469,3.2,182.04,181.98,35.92376698]
[1734883763470,0.92318197,182.03,181.98,35.92376698]
[1734883763661,3.2,182.04,181.98,14.08720389]
[1734883763866,2.7497,181.97,181.96,91.44015777]
[1734883764070,5.9497,181.97,181.96,105.53524465]
[1734883764466,5.9497,181.97,181.96,96.86134503]
[1734883764666,5.9497,181.97,181.96,5.42118726]
[1734883765070,2.7502,181.94,181.93,91.44015777]
[1734883765673,7.1363,182.04,181.93,8.67817694]
[1734883765674,3.2,182.0,181.93,8.67817694]
[1734883766177,2.7497,181.97,181.93,9.14101815]
[1734883767672,2.7499,181.96,181.93,9.14101815]
[1734883768177,2.7499,181.96,181.92,91.44015777]
[1734883768473,2.75,181.95,181.94,21.83872707]
[1734883769070,3.2,182.0,181.92,91.44015777]
[1734883769271,2.7503,181.93,181.92,91.44015777]
[1734883769966,3.2,181.95,181.89,191.37716915]
[1734883769967,2.7506,181.92,181.89,91.44015777]
[1734883770163,3.2,181.95,181.89,91.44015777]
[1734883770771,2.7508,181.9,181.89,91.44015777]
[1734883770974,3.2,181.95,181.88,91.44015777]
[1734883771570,2.7509,181.89,181.88,91.44015777]
[1734883771771,5.9509,181.89,181.88,91.44015777]
[1734883772171,3.2,181.89,181.83,91.44015777]
[1734883772368,14.6298577,181.87,181.83,91.44015777]
[1734883772573,3.2513,181.88,181.83,91.44015777]
[1734883772775,2.7517,181.84,181.83,91.44015777]
[1734883773075,3.2,181.84,181.81,149.73976036]
[1734883773273,14.6298577,181.82,181.81,110.9028099]
[1734883773467,14.6298577,181.82,181.75,110.9028099]
[1734883773971,3.2,181.82,181.75,110.9028099]
[1734883774276,3.2,181.82,181.77,2.7526]
[1734883774571,3.2,181.84,181.76,1.7335]
[1734883774977,3.2,181.84,181.78,2.7525]
[1734883775276,3.2,181.84,181.76,1.7335]
[1734883775779,5.9518,181.84,181.77,2.7527]
[1734883775973,3.2,181.84,181.76,1.7335]
[1734883776171,14.6298577,181.83,181.73,3.286]
[1734883776667,14.6298577,181.8,181.64,14.6298577]
[1734883776872,3.2,181.79,181.69,2.7539]
[1734883777178,3.2,181.78,181.7,5.23054621]
[1734883777669,3.2,181.78,181.68,1.7191]
[1734883778182,2.754,181.69,181.68,1.7191]
[1734883778479,3.2,181.7,181.68,1.7191]
[1734883779472,5.9538,181.7,181.68,1.7191]
[1734883779780,3.2,181.7,181.68,1.7191]
[1734883780275,25.50657607,181.79,181.68,1.7191]
[1734883780478,3.2,181.78,181.68,1.7191]
[1734883780879,23.84717607,181.79,181.68,1.7191]
[1734883781180,3.2,181.78,181.68,1.7191]
[1734883781371,2.7533,181.74,181.68,1.7191]
[1734883781572,3.2,181.74,181.68,1.7191]
[1734883782380,3.2,181.74,181.65,1.7147]
[1734883782575,2.7543,181.67,181.65,1.7147]
[1734883782774,5.9543,181.67,181.65,1.7147]
[1734883783781,3.2,181.67,181.65,1.7147]
[1734883784773,3.2,181.68,181.65,1.7147]
[1734883785174,3.2,181.7,181.65,1.7147]
[1734883785575,3.2,181.7,181.66,5.46536494]
[1734883785883,3.2,181.7,181.65,1.7147]
[1734883786085,3.2,181.7,181.65,4.4692]
[1734883786778,2.7542,181.68,181.66,5.46263566]
[1734883787085,3.2,181.7,181.65,1.7147]
[1734883787280,2.7544,181.66,181.65,1.7147]
[1734883787479,3.2,181.7,181.63,1.7434]
[1734883787784,27.04717607,181.7,181.61,90.26511993]
[1734883787985,23.84717607,181.67,181.59,1.653]
[1734883788279,2.7546,181.65,181.59,1.653]
[1734883788485,3.2,181.64,181.59,1.653]
[1734883789483,3.2,181.64,181.55,1.6531]
[1734883790080,2.7558,181.57,181.55,1.6531]
[1734883790290,5.9558,181.57,181.55,1.6531]
[1734883790483,2.7559,181.56,181.55,1.6531]
[1734883790987,3.2,181.57,181.51,90.26511993]
[1734883791185,2.7562,181.55,181.52,5.45888204]
[1734883791485,2.7562,181.55,181.49,5.087]
[1734883791687,3.2,181.57,181.49,5.087]
[1734883791888,3.2,181.57,181.49,3.3406]
[1734883792092,3.2,181.57,181.5,5.45400791]
[1734883792585,3.2,181.57,181.45,90.26511993]
[1734883792896,23.84717607,181.55,181.46,5.44843372]
[1734883793191,23.84717607,181.55,181.44,3.3406]
[1734883793383,3.2,181.57,181.45,2.7576]
[1734883793690,23.84717607,181.64,181.5,23.84717607]
[1734883793889,3.2,181.61,181.51,1.7331]
[1734883794094,3.2,181.61,181.51,15.88430012]
[1734883794291,3.2,181.61,181.52,5.44276928]
[1734883794586,3.2,181.61,181.53,5.44276928]
[1734883794979,3.2,181.61,181.54,5.44276928]
[1734883795182,3.2,181.61,181.55,5.44276928]
[1734883795385,3.2,181.61,181.53,2.7564]
[1734883795787,3.2,181.61,181.54,14.14093826]
[1734883796184,3.2,181.61,181.55,5.43882241]
[1734883796485,23.84717607,181.67,181.56,5.43882241]
[1734883796791,3.2,181.64,181.57,14.13878161]
[1734883797488,3.2,181.64,181.58,5.43882241]
[1734883797794,3.2,181.64,181.59,14.14159227]
[1734883797988,3.2,181.64,181.6,5.43882241]
[1734883798389,3.2,181.64,181.61,5.43882241]
[1734883798882,3.2,181.64,181.55,122.21903119]
[1734883799191,3.2,181.64,181.56,14.14857342]
[1734883799597,3.2,181.64,181.57,14.14857342]
[1734883799885,3.2,181.64,181.58,14.14857342]
[1734883800090,3.2,181.64,181.59,5.44175901]
[1734883800696,27.04717607,181.64,181.55,90.26511993]
[1734883800898,23.84717607,181.61,181.55,90.26511993]
[1734883801202,3.2,181.64,181.55,90.26511993]
[1734883801203,27.04717607,181.64,181.56,5.44068686]
[1734883801587,27.04717607,181.64,181.57,5.44068686]
[1734883801792,27.04717607,181.64,181.53,90.26511993]
[1734883801988,23.84717607,181.61,181.53,90.26511993]
[1734883802188,27.04717607,181.64,181.54,14.15009482]
[1734883802394,27.04717607,181.64,181.55,5.44234416]
[1734883802699,23.84717607,181.61,181.53,90.26511993]
[1734883802897,23.84717607,181.61,181.52,3.3881]
[1734883803492,19.72,181.64,181.53,22.01203385]
[1734883803493,23.84717607,181.58,181.53,22.01203385]
[1734883803696,3.2,181.57,181.53,22.01203385]
[1734883804198,23.84717607,181.55,181.52,90.26511993]
[1734883804398,40.36717607,181.55,181.5,90.61003239]
[1734883804692,23.84717607,181.52,181.5,61.65177658]
[1734883804997,16.52,181.55,181.5,61.65177658]
[1734883804998,3.2,181.51,181.5,61.65177658]
[1734883805399,3.2,181.51,181.45,150.54095407]
[1734883805599,23.84717607,181.5,181.45,150.54095407]
[1734883805994,23.84717607,181.47,181.45,150.54095407]
[1734883806196,3.2,181.46,181.45,150.54095407]
[1734883806499,3.2,181.46,181.45,142.26176902]
[1734883806698,3.2,181.46,181.32,3.3305]
[1734883807003,23.84717607,181.43,181.32,3.3305]
[1734883807400,23.84717607,181.46,181.32,3.3305]
[1734883807605,3.2,181.45,181.33,23.84717607]
[1734883807801,0.92414773,181.54,181.32,3.3305]
[1734883807802,3.2,181.44,181.37,2.7588]
[1734883808003,3.2,181.48,181.36,5.36353414]
[1734883808204,3.2,181.48,181.41,2.7581]
[1734883808405,3.2,181.48,181.42,1.6778]
[1734883808706,3.2,181.48,181.42,25.52497607]
[1734883808904,3.2,181.48,181.42,28.28287607]
[1734883808905,0.574,181.48,181.42,28.28287607]
[1734883809697,3.2,181.51,181.44,2.7577]
[1734883810499,0.92414773,181.54,181.44,2.7577]
[1734883810705,3.2,181.53,181.45,23.84717607]
[1734883810908,3.2,181.53,181.42,25.52497607]
[1734883811106,3.2,181.53,181.43,5.20075359]
[1734883811404,3.2,181.53,181.42,28.28297607]
[1734883812010,3.2,181.53,181.43,5.20545265]
[1734883812203,3.2,181.53,181.45,2.7576]
[1734883812411,3.2,181.53,181.42,25.52497607]
[1734883812609,3.2,181.53,181.45,23.84717607]
[1734883812805,3.2,181.53,181.46,5.21060195]
[1734883813203,3.2,181.53,181.43,1.7078]
[1734883813403,3.2,181.53,181.44,5.21748681]
[1734883813909,3.2,181.53,181.43,1.7078]
[1734883814104,27.04717607,181.53,181.43,1.7078]
[1734883816511,27.04717607,181.53,181.44,5.2337817]
[1734883816702,27.04717607,181.53,181.43,1.7078]
[1734883817712,27.04717607,181.53,181.44,5.23820894]
[1734883817912,27.04717607,181.53,181.43,1.7078]
[1734883818611,23.84717607,181.5,181.44,5.24051398]
[1734883818808,23.84717607,181.5,181.37,3.2853]
[1734883819001,23.84717607,181.5,181.38,5.24108108]
[1734883819404,23.84717607,181.5,181.39,5.24108108]
[1734883819607,23.84717607,181.5,181.4,5.24108108]
[1734883820106,3.2,181.49,181.41,5.24108108]
[1734883820511,3.2,181.49,181.42,5.24108108]
[1734883820708,3.2,181.49,181.43,5.24108108]
[1734883820903,3.2,181.51,181.43,5.24108108]
[1734883821109,3.2,181.51,181.44,5.24108108]
[1734883821305,3.2,181.51,181.45,10.12968108]
[1734883821710,3.2,181.51,181.46,5.24108108]
[1734883821912,3.2,181.51,181.47,5.24108108]
[1734883822111,3.2,181.51,181.45,4.8886]
[1734883822518,3.2,181.51,181.46,5.25962637]
[1734883822815,3.2,181.51,181.45,4.8886]
[1734883822816,3.2,181.51,181.47,5.25962637]
[1734883823015,3.2,181.51,181.45,3.2391]
[1734883823418,3.2,181.51,181.46,5.26153877]
[1734883824314,3.2,181.5,181.45,3.2391]
[1734883824617,3.2,181.49,181.45,3.2391]
[1734883825718,23.84717607,181.59,181.45,3.2391]
[1734883826019,3.2,181.58,181.45,3.2391]
[1734883826215,2.93,181.58,181.45,3.2391]
[1734883826617,2.93,181.58,181.46,5.26822419]
[1734883826917,2.93,181.58,181.48,2.7571]
[1734883827119,2.93,181.58,181.47,25.48507607]
[1734883827319,3.2,181.58,181.47,25.48507607]
[1734883827520,23.84717607,181.65,181.47,25.48507607]